bitfinex/quotes_ETHUSD_20220310
["timestamp","ask_amount","ask_price","bid_price","bid_amount"]
[1646874438709,1.8505,2704.2,2703.1,0.06174028]
[1646874438710,0.53,2704.1,2703.1,0.14991859]
[1646874439209,0.00351067,2703.8,2703.1,0.06174028]
[1646874439410,0.00351067,2703.8,2703.1,0.42874028]
[1646874440013,0.53,2704.1,2703.1,0.42874028]
[1646874440216,0.028592,2704.0,2703.1,0.42874028]
[1646874440418,0.00351074,2703.6,2703.1,0.06174028]
[1646874441256,0.028592,2704.0,2703.1,0.06174028]
[1646874441461,0.00345065,2703.5,2703.1,0.06174028]
[1646874442257,0.00345065,2703.5,2703.3,1.1267219]
[1646874442457,0.028592,2704.0,2703.3,1.4937219]
[1646874442656,0.028001,2704.3,2703.4,0.08468431]
[1646874442855,0.028001,2704.3,2703.4,0.92491]
[1646874443059,0.028001,2704.3,2703.6,0.08656738]
[1646874443456,0.5,2704.6,2704.2,1.11249559]
[1646874443658,0.5,2704.6,2704.3,0.08132945]
[1646874444904,0.952861,2705.1,2704.3,0.08132945]
[1646874444905,0.028001,2705.1,2704.3,0.08132945]
[1646874445109,0.00351035,2704.6,2704.3,0.08132945]
[1646874446011,0.028001,2705.1,2704.0,0.08030374]
[1646874446207,0.558001,2705.1,2704.0,0.08030374]
[1646874446406,0.00351035,2704.6,2704.0,0.08030374]
[1646874446610,3.45351035,2705.0,2704.1,2.0]
[1646874446807,4.98351035,2705.0,2703.9,2.2905]
[1646874447007,4.98351035,2705.0,2704.0,0.08574869]
[1646874447207,5.90849035,2705.0,2704.0,0.08574869]
[1646874447407,0.92503,2704.6,2704.0,0.08574869]
[1646874447907,1.85002,2704.9,2703.7,0.08042305]
[1646874447908,1.0,2704.9,2703.7,0.08042305]
[1646874448110,1.0,2705.0,2703.8,0.367]
[1646874448308,0.028001,2705.1,2703.8,0.7516796]
[1646874448512,0.028001,2705.1,2703.9,0.0886661]
[1646874448764,0.00351,2704.7,2703.9,0.0886661]
[1646874449663,0.028001,2705.1,2703.9,0.0886661]
[1646874449864,0.00351,2704.7,2703.9,0.0886661]
[1646874450670,0.028001,2705.1,2705.0,1.08287395]
[1646874450869,2.04136828,2705.3,2705.0,1.08287395]
[1646874451069,2.04136828,2705.3,2705.1,0.08749868]
[1646874451070,3.04136828,2705.3,2705.1,0.08749868]
[1646874451268,2.04136828,2705.3,2705.1,0.08749868]
[1646874451469,3.04136828,2705.3,2705.1,0.08749868]
[1646874451869,2.04136828,2705.3,2705.1,0.08749868]
[1646874452168,3.04136828,2705.3,2705.1,0.08749868]
[1646874452409,2.04136828,2705.3,2705.1,0.08749868]
[1646874452609,3.04136828,2705.3,2705.1,0.08749868]
[1646874452908,2.96623828,2705.3,2705.0,0.42543468]
[1646874453108,0.92486,2705.2,2705.0,0.42543468]
[1646874454714,0.92746511,2705.2,2705.0,0.42543468]
[1646874455213,4.03,2705.1,2705.0,0.42543468]
[1646874455413,0.53,2705.1,2705.0,0.42543468]
[1646874455616,1.53,2705.1,2705.0,0.42543468]
[1646874455913,0.53,2705.1,2705.0,0.42543468]
[1646874457956,1.92486,2705.2,2705.0,0.42543468]
[1646874458359,1.92855031,2705.2,2705.0,0.42543468]
[1646874459162,1.92486,2705.2,2705.0,0.42543468]
[1646874459563,1.92855029,2705.2,2705.0,0.42543468]
[1646874460413,1.92486,2705.2,2705.0,0.42543468]
[1646874460713,1.92855029,2705.2,2705.0,0.42543468]
[1646874461115,1.00369029,2705.2,2705.0,0.42543468]
[1646874461715,1.0,2705.2,2705.0,0.42543468]
[1646874462119,1.00369029,2705.2,2705.0,0.42543468]
[1646874462818,1.0,2705.2,2705.0,0.42543468]
[1646874463019,1.00369029,2705.2,2705.0,0.42543468]
[1646874464161,1.0,2705.2,2705.0,0.42543468]
[1646874464360,1.00358151,2705.2,2705.0,0.42543468]
[1646874465260,1.0,2705.2,2705.0,0.42543468]
[1646874465461,1.00358151,2705.2,2705.0,0.42543468]
[1646874465661,4.50358151,2705.2,2705.0,0.42543468]
[1646874465862,3.528806,2705.1,2705.0,0.42543468]
[1646874466159,0.028806,2705.1,2705.0,0.42543468]
[1646874466359,1.028806,2705.1,2705.0,0.42543468]
[1646874466560,0.028806,2705.1,2705.0,0.42543468]
[1646874466961,0.92499,2704.7,2704.0,0.08364726]
[1646874467161,3.528358,2704.6,2703.4,0.00119439]
[1646874467416,3.528358,2704.6,2703.4,0.08687848]
[1646874467417,0.029168,2704.3,2703.4,0.08687848]
[1646874467612,0.029168,2704.3,2703.2,0.07400611]
[1646874467810,0.029168,2704.3,2703.4,0.07364224]
[1646874468011,0.029168,2704.3,2703.5,0.9459432]
[1646874468210,0.029168,2704.3,2703.6,0.07484952]
[1646874469814,0.028001,2704.6,2703.6,0.07484952]
[1646874470214,0.028001,2704.6,2703.6,0.92487]
[1646874470521,0.028001,2704.6,2703.7,0.08093438]
[1646874470920,0.028001,2704.6,2703.8,0.9247943]
[1646874471181,0.028001,2704.6,2703.9,0.0796971]
[1646874472770,0.028001,2704.6,2703.8,0.08859636]
[1646874472969,0.028001,2704.6,2703.8,0.07556569]
[1646874473171,0.028001,2704.6,2703.6,0.08581272]
[1646874473571,0.028001,2704.6,2703.7,1.53346096]
[1646874473773,0.028001,2704.6,2703.8,0.07857608]
[1646874474374,0.028001,2704.6,2703.9,1.90037021]
[1646874474574,0.028001,2704.6,2703.8,0.74557608]
[1646874474776,0.028001,2704.6,2704.0,0.07158766]
[1646874475820,0.028001,2704.6,2704.4,1.13003962]
[1646874476018,0.56750309,2704.7,2704.4,1.08003962]
[1646874476318,0.56750309,2704.7,2704.5,0.08151304]
[1646874476919,0.56750309,2704.7,2704.1,0.3]
[1646874477117,0.56750309,2704.7,2704.2,0.09012678]
[1646874477419,0.56750309,2704.7,2703.8,3.8]
[1646874477420,0.56750309,2704.7,2703.6,3.8]
[1646874477619,0.56750309,2704.7,2703.9,1.03040406]
[1646874477822,0.59586909,2704.7,2704.0,1.53339823]
[1646874478220,0.59586909,2704.7,2704.1,1.53339823]
[1646874478221,0.64518192,2704.7,2704.1,1.53339823]
[1646874478419,0.64518192,2704.7,2703.8,0.08940638]
[1646874478670,0.64518192,2704.7,2703.9,1.53349909]
[1646874479460,0.92503,2704.5,2703.9,1.53349909]
[1646874479661,0.028929,2704.3,2703.4,1.136]
[1646874479861,0.029168,2704.0,2703.5,1.610475]
[1646874480069,0.029168,2704.0,2703.6,1.61701676]
[1646874480267,0.029168,2704.0,2703.7,1.5335859]
[1646874481666,0.92521,2704.1,2703.7,1.5335859]
[1646874482514,1.0,2704.3,2704.0,1.17894012]
[1646874482709,3.62047592,2704.7,2704.0,1.17894012]
[1646874482710,1.77031592,2704.7,2704.0,1.17894012]
[1646874482909,0.61681592,2704.7,2704.0,1.17894012]
[1646874483114,0.56750309,2704.7,2704.1,5.06427867]
[1646874483312,0.56750309,2704.7,2704.2,1.53346462]
[1646874483713,0.56750309,2704.7,2704.3,1.53332886]
[1646874483913,0.56750309,2704.7,2704.0,1.17894012]
[1646874483914,0.61298054,2704.7,2704.0,1.17894012]
[1646874484114,0.05667053,2704.6,2704.1,1.53338481]
[1646874484519,0.08468853,2704.6,2704.1,1.53338481]
[1646874485520,0.029168,2704.3,2704.1,1.53338481]
[1646874485722,0.029168,2704.3,2703.4,3.8798677]
[1646874485920,0.029168,2704.3,2703.5,1.53354439]
[1646874486359,0.50369162,2704.7,2703.9,1.13084627]
[1646874486562,0.05313733,2704.6,2704.0,1.53354439]
[1646874486763,0.92514,2704.2,2704.0,1.53354439]
[1646874488165,0.92506,2704.4,2704.0,1.53354439]
[1646874488466,0.05313733,2704.6,2704.0,1.53354439]
[1646874488667,0.05313733,2704.6,2703.6,0.07390549]
[1646874488865,0.05313733,2704.6,2703.8,0.0776846]
[1646874489065,0.05313733,2704.6,2703.9,1.53354804]
[1646874489666,0.05313733,2704.6,2704.0,1.53354804]
[1646874489911,0.05313733,2704.6,2703.8,1.08873549]
[1646874490118,0.05313733,2704.6,2703.9,1.53355308]
[1646874491019,0.05313733,2704.6,2703.9,5.03355308]
[1646874491217,0.05313733,2704.6,2704.0,1.53355308]
[1646874491424,0.05313733,2704.6,2704.3,1.11042541]
[1646874491617,0.50369162,2704.7,2704.3,1.11042541]
[1646874492517,7.3967,2705.1,2705.0,1.44351643]
[1646874492718,1.0,2705.1,2705.0,1.44351643]
[1646874493117,2.0,2705.3,2705.0,1.44351643]
[1646874493318,1.0,2705.3,2705.0,1.44351643]
[1646874493520,1.92482,2705.2,2705.0,1.44351643]
[1646874493768,1.0,2705.2,2705.0,1.44351643]
[1646874493970,1.0,2705.2,2705.1,0.07990874]
[1646874494365,1.00260248,2705.2,2705.1,0.07990874]
[1646874495374,1.0,2705.2,2705.1,0.07990874]
[1646874498617,1.0,2705.2,2705.1,3.57990874]
[1646874498920,1.0,2705.2,2705.1,0.07990874]
[1646874500016,0.9,2705.2,2705.1,0.07990874]
[1646874501200,0.00369202,2705.3,2705.1,0.07990874]
[1646874501201,9.202e-05,2705.3,2705.2,3.7]
[1646874501373,10.9748,2706.5,2705.3,0.44699479]
[1646874501580,10.9748,2706.5,2705.5,0.952581]
[1646874501581,0.01449257,2705.7,2705.5,0.952581]
[1646874501767,0.01449257,2705.7,2705.6,0.3]
[1646874502167,0.01449257,2705.7,2705.6,1.21883548]
[1646874502565,3.6548,2706.5,2705.8,0.9241556]
[1646874502767,0.01039785,2706.2,2706.1,1.14676875]
[1646874502966,0.01039785,2706.2,2705.8,0.9241556]
[1646874503165,0.01039785,2706.2,2705.9,0.3]
[1646874503867,0.29440603,2706.6,2705.7,1.12509015]
[1646874504076,0.00259985,2706.2,2705.4,0.3]
[1646874504266,0.00259985,2706.2,2705.3,1.53917654]
[1646874504267,0.00259985,2706.2,2705.3,1.83917654]
[1646874504467,0.00259985,2706.2,2705.3,1.53917654]
[1646874504911,4.17180388,2706.6,2705.3,0.38877654]
[1646874504912,4.79440603,2706.6,2705.3,0.38877654]
[1646874505115,0.00369178,2705.9,2705.3,0.38877654]
[1646874505316,0.00369178,2705.9,2705.6,0.95489498]
[1646874506017,0.00369178,2705.9,2705.3,0.38877654]
[1646874506215,4.79440603,2706.6,2705.3,0.38877654]
[1646874506416,0.00369178,2705.9,2705.5,0.029168]
[1646874507219,1.0,2706.3,2705.5,0.029168]
[1646874507417,3.5,2706.3,2705.3,1.30536326]
[1646874507618,0.0036918,2705.8,2705.3,1.00536326]
[1646874507819,0.0036918,2705.8,2705.3,0.08877654]
[1646874508219,0.0036918,2705.8,2705.0,3.81611643]
[1646874508419,4.5,2706.1,2705.0,3.81611643]
[1646874508868,0.00369186,2705.7,2705.1,0.94043118]
[1646874509670,0.9246,2706.0,2705.1,0.94043118]
[1646874510072,0.0036235,2705.5,2705.1,0.94043118]
[1646874510472,0.0036235,2705.5,2705.2,0.027767]
[1646874510876,1.228,2706.3,2705.2,0.027767]
[1646874511073,1.228,2706.3,2705.5,0.029168]
[1646874511277,1.228,2706.3,2705.8,0.029168]
[1646874511278,0.01449188,2705.9,2705.8,0.029168]
[1646874511675,0.01449188,2705.9,2705.8,1.16981578]
[1646874512072,1.0,2706.5,2705.8,1.16981578]
[1646874512272,0.29440603,2706.6,2705.9,0.07358442]
[1646874512513,0.00362332,2706.0,2705.9,0.07358442]
[1646874513319,0.29440603,2706.6,2705.9,0.07358442]
[1646874513519,0.00349634,2706.1,2705.9,0.07358442]
[1646874514523,0.92444,2706.4,2705.8,0.029168]
[1646874514720,0.00349632,2706.1,2705.8,0.029168]
[1646874514919,0.00349632,2706.1,2705.5,0.029168]
[1646874515720,0.92444,2706.4,2705.6,1.18946248]
[1646874515921,0.00349639,2705.9,2705.6,1.18946248]
[1646874516172,0.00349639,2705.9,2705.7,0.07895135]
[1646874516862,0.92444,2706.4,2705.7,0.07895135]
[1646874517461,0.92444,2706.4,2705.7,0.10561335]
[1646874517662,0.92449,2706.3,2705.7,0.10561335]
[1646874518263,0.00259906,2706.1,2705.7,0.10561335]
[1646874519172,0.92449,2706.3,2705.7,0.10561335]
[1646874519578,0.00259906,2706.0,2705.7,0.10561335]
[1646874520419,0.92449,2706.3,2705.7,0.10561335]
[1646874520920,0.00369364,2706.0,2705.7,0.10561335]
[1646874521719,1.129,2706.5,2705.7,0.10561335]
[1646874521919,0.00369364,2706.0,2705.7,0.10561335]
[1646874522923,1.129,2706.5,2705.7,0.10561335]
[1646874523120,0.00369364,2706.0,2705.7,0.10561335]
[1646874523319,0.00369364,2706.0,2705.8,1.03064428]
[1646874523519,0.00369364,2706.0,2705.9,0.08347405]
[1646874524165,0.29440603,2706.6,2705.9,0.08347405]
[1646874524364,0.0036936,2706.1,2705.9,0.08347405]
[1646874524668,0.0036936,2706.1,2705.7,0.026662]
[1646874525370,0.00140011,2705.7,2705.5,0.029168]
[1646874525870,0.00140011,2705.7,2705.5,0.10131876]
[1646874526269,0.64395338,2706.4,2705.5,0.10131876]
[1646874526468,0.6294552,2706.4,2705.5,0.10131876]
[1646874526668,0.6294552,2706.4,2705.6,0.029168]
[1646874526669,3.5,2706.3,2705.6,0.029168]
[1646874526874,0.0036252,2705.7,2705.6,0.029168]
[1646874527073,0.0036252,2705.7,2705.2,0.027767]
[1646874527812,0.92464,2705.8,2705.2,0.027767]
[1646874528014,0.92464,2705.8,2705.2,0.10143221]
[1646874530218,1.4828917,2705.8,2705.2,0.10143221]
[1646874530420,0.92469,2705.6,2705.2,0.10143221]
[1646874531263,2.7828917,2705.8,2705.2,0.10143221]
[1646874531467,1.7828917,2705.8,2705.2,0.10143221]
[1646874531666,2.4828917,2705.8,2705.2,0.10143221]
[1646874531964,0.5582517,2705.8,2705.2,0.10143221]
[1646874533167,0.5582517,2705.8,2705.4,0.029168]
[1646874538674,0.5582517,2705.8,2705.6,0.93835678]
[1646874538866,2.1363,2706.1,2705.6,0.96474078]
[1646874538867,1.13981214,2706.1,2705.6,0.96474078]
[1646874539068,0.00351214,2706.1,2705.7,0.0753283]
[1646874539767,3.7661,2706.5,2705.7,0.0753283]
[1646874539971,0.00351118,2706.1,2705.7,0.0753283]
[1646874540970,4.7661,2706.5,2705.7,0.0753283]
[1646874541168,0.00351118,2706.1,2705.7,0.0753283]
[1646874541573,9.15803431,2706.5,2705.7,0.0753283]
[1646874542173,0.92441,2706.3,2705.6,0.026384]
[1646874542412,0.92451,2706.2,2705.6,0.026384]
[1646874542612,0.92451,2706.2,2705.4,0.029168]
[1646874543611,0.92451,2706.2,2705.7,0.00093038]
[1646874543910,0.92454,2706.0,2705.7,0.00093038]
[1646874544111,0.92459,2705.9,2705.7,0.00093038]
[1646874544513,0.92459,2705.9,2705.4,0.029168]
[1646874544712,0.92459,2705.9,2705.8,0.03811383]
[1646874546661,1.22454,2706.0,2705.8,0.03811383]
[1646874546861,0.92454,2706.0,2705.8,0.03811383]
[1646874547066,1.92451,2706.2,2705.8,0.03811383]
[1646874547267,0.92451,2706.2,2705.8,0.03811383]
[1646874548067,3.35853,2706.3,2705.8,0.03811383]
[1646874548270,2.05853,2706.3,2705.8,0.03811383]
[1646874548468,3.05853,2706.3,2705.9,0.00332548]
[1646874548868,1.1341,2706.3,2705.9,0.00332548]
[1646874549069,2.1341,2706.3,2705.9,0.00332548]
[1646874549270,1.1341,2706.3,2705.8,0.03811383]
[1646874549670,1.1341,2706.3,2706.0,0.00332536]
[1646874550626,1.1341,2706.3,2705.8,0.02601026]
[1646874550825,1.1341,2706.3,2706.0,0.00306242]
[1646874551427,0.92449,2706.2,2706.0,0.00306242]
[1646874551725,0.92449,2706.2,2705.8,0.02601026]
[1646874552129,0.92449,2706.2,2706.0,0.00306242]
[1646874552525,1.84899,2706.2,2706.0,0.00306242]
[1646874552726,2.14899,2706.2,2706.0,0.00306242]
[1646874552926,2.14899,2706.2,2705.8,0.02601026]
[1646874553129,2.14899,2706.2,2706.0,0.00306247]
[1646874554165,1.84899,2706.2,2705.8,0.02601026]
[1646874554364,2.14899,2706.2,2706.0,0.00310022]
[1646874555370,1.84899,2706.2,2705.9,0.024501]
[1646874555570,2.14899,2706.2,2706.0,0.00310022]
[1646874555970,1.84899,2706.2,2706.0,0.00310022]
[1646874556171,2.14899,2706.2,2706.0,0.00310022]
[1646874556572,1.84899,2706.2,2705.9,0.024501]
[1646874556771,2.14899,2706.2,2706.0,0.00310022]
[1646874557172,1.84899,2706.2,2706.0,0.00310022]
[1646874557413,2.14899,2706.2,2706.0,0.00310022]
[1646874557618,1.84899,2706.2,2706.0,0.00310022]
[1646874557914,2.14899,2706.2,2705.7,0.024501]
[1646874558305,2.14899,2706.2,2706.0,0.00309445]
[1646874558700,1.84899,2706.2,2706.0,0.00309445]
[1646874558900,2.14899,2706.2,2706.0,0.02594729]
[1646874559301,2.14899,2706.2,2706.0,0.02904174]
[1646874560106,1.84899,2706.2,2706.0,0.02594729]
[1646874560304,2.14899,2706.2,2706.0,0.02904174]
[1646874561176,1.84899,2706.2,2706.0,0.02904174]
[1646874561367,2.14899,2706.2,2706.0,0.02594729]
[1646874561566,2.14899,2706.2,2706.0,0.02904264]
[1646874562175,1.84899,2706.2,2706.0,0.02904264]
[1646874562369,2.14899,2706.2,2706.0,0.02904264]
[1646874562573,2.14899,2706.2,2706.0,0.02594729]
[1646874562775,1.84899,2706.2,2706.0,0.02904264]
[1646874562975,2.14899,2706.2,2706.0,0.02904264]
[1646874563675,2.14899,2706.2,2706.0,0.02594729]
[1646874564177,2.14899,2706.2,2706.0,0.00309535]
[1646874565012,2.14899,2706.2,2705.7,0.024501]
[1646874565213,3.07358,2706.2,2706.0,0.0030952]
[1646874565612,3.77358,2706.2,2706.0,0.0030952]
[1646874565816,4.07358,2706.2,2706.0,0.0030952]
[1646874566212,4.07358,2706.2,2705.7,0.024501]
[1646874566414,4.07358,2706.2,2706.0,0.0030952]
[1646874566613,3.77358,2706.2,2706.0,0.00177697]
[1646874566814,4.07358,2706.2,2706.0,0.00177697]
[1646874567414,4.07358,2706.2,2706.1,0.00116391]
[1646874567614,2.84908,2706.2,2706.1,0.00116391]
[1646874567815,1.84908,2706.2,2706.1,0.00116391]
[1646874568013,2.84908,2706.2,2706.1,0.00116391]
[1646874568215,1.84908,2706.2,2706.1,0.00116391]
[1646874568414,2.84908,2706.2,2706.1,0.00116391]
[1646874568853,1.84908,2706.2,2706.1,0.00116391]
[1646874569053,2.84908,2706.2,2706.1,0.00116391]
[1646874569354,1.84908,2706.2,2706.1,0.00116391]
[1646874569553,2.84908,2706.2,2706.1,0.00116391]
[1646874569753,1.84908,2706.2,2706.1,0.00116391]
[1646874569958,2.84908,2706.2,2706.1,0.00116391]
[1646874570358,1.84908,2706.2,2706.1,0.00116391]
[1646874570558,2.84908,2706.2,2706.1,0.00116391]
[1646874570759,1.84908,2706.2,2706.1,0.00116391]
[1646874570960,2.84908,2706.2,2706.1,0.00116391]
[1646874571361,1.84908,2706.2,2706.1,0.00116391]
[1646874571560,2.84908,2706.2,2706.1,0.00116391]
[1646874571761,1.84908,2706.2,2706.1,0.00116391]
[1646874571961,2.84908,2706.2,2706.1,0.00116391]
[1646874572800,1.92449,2706.2,2706.1,0.00116391]
[1646874573301,0.92449,2706.2,2706.0,0.02589696]
[1646874573501,0.92449,2706.2,2706.0,0.02898884]
[1646874574101,0.92449,2706.2,2706.0,0.00309188]
[1646874574502,0.92449,2706.2,2705.9,0.024501]
[1646874574905,0.53,2706.1,2706.0,0.00309194]
[1646874575109,5.87938,2706.1,2706.0,0.00309194]
[1646874575311,6.87938,2706.1,2706.0,0.00309194]
[1646874575507,3.37938,2706.1,2706.0,0.00309194]
[1646874575707,2.37938,2706.1,2705.6,0.024501]
[1646874575909,3.37938,2706.1,2705.6,0.024501]
[1646874576163,3.37938,2706.1,2705.9,0.00309248]
[1646874576357,2.37938,2706.1,2705.9,0.00309248]
[1646874576550,3.37938,2706.1,2705.9,0.00309248]
[1646874576751,2.37938,2706.1,2705.9,0.00309248]
[1646874577053,3.37938,2706.1,2705.7,0.024501]
[1646874577254,3.37938,2706.1,2705.9,0.00309254]
[1646874577255,5.87938,2706.1,2705.9,0.00309254]
[1646874577453,6.87938,2706.1,2705.9,0.00309254]
[1646874577654,3.5,2706.0,2705.9,0.00309254]
[1646874577853,5.03,2706.0,2705.9,0.00309254]
[1646874578053,5.03,2706.0,2705.7,0.024501]
[1646874578256,6.8794,2706.0,2705.6,0.024501]
[1646874578455,9.02898,2706.0,2705.8,0.00309259]
[1646874578755,3.5,2705.9,2705.8,0.00309259]
[1646874578961,4.03,2705.9,2705.8,0.00309259]
[1646874579154,6.10492911,2705.9,2705.8,0.00309259]
[1646874579355,0.92488,2705.8,2705.4,0.024501]
[1646874579554,0.92488,2705.6,2705.4,0.024501]
[1646874579754,5.34969,2705.5,2705.3,0.029168]
[1646874580007,1.84969,2705.5,2705.4,1.53308355]
[1646874580207,2.84969,2705.5,2705.3,0.029168]
[1646874580406,2.84969,2705.5,2705.1,0.11099361]
[1646874580605,1.84969,2705.5,2705.2,1.53306791]
[1646874580807,4.69938,2705.5,2705.3,0.00309309]
[1646874581011,3.99938,2705.5,2705.3,0.00309309]
[1646874581206,4.99938,2705.5,2705.3,0.00309309]
[1646874581807,4.99938,2705.5,2705.2,1.55756891]
[1646874581808,5.52938,2705.5,2705.2,1.55756891]
[1646874582013,5.52938,2705.5,2705.3,0.00309315]
[1646874583010,5.52938,2705.5,2705.2,0.024501]
[1646874583208,5.52938,2705.5,2705.3,0.00309321]
[1646874584052,5.52938,2705.5,2705.2,0.024501]
[1646874584453,5.52938,2705.5,2705.3,0.00309321]
[1646874585258,5.52938,2705.5,2705.2,0.024501]
[1646874585661,5.52938,2705.5,2705.3,0.00309321]
[1646874586459,5.52938,2705.5,2705.2,0.024501]
[1646874586865,5.52938,2705.5,2705.3,0.00309321]
[1646874587160,3.67969,2705.5,2705.3,0.00309321]
[1646874587802,3.67969,2705.5,2705.1,0.11099361]
[1646874588002,3.67969,2705.5,2705.3,0.00309321]
[1646874589005,0.00080876,2705.3,2705.2,0.024501]
[1646874589205,0.00080876,2705.3,2705.1,0.11099361]
[1646874590009,0.92560876,2705.3,2705.1,0.11099361]
[1646874590214,0.92560876,2705.3,2705.1,0.08649261]
[1646874590412,0.92560876,2705.3,2705.1,0.08958603]
[1646874590609,0.53,2705.2,2705.1,0.08958603]
[1646874591457,0.53,2705.2,2705.1,0.08649261]
[1646874592857,0.53,2705.2,2705.0,1.52297432]
[1646874593060,1.84997,2705.1,2705.0,1.52297432]
[1646874593665,1.84997,2705.1,2705.0,1.51988084]
[1646874593959,1.84997,2705.1,2705.0,1.5186304]
[1646874601062,1.55384274,2705.2,2705.1,0.08596341]
[1646874601260,0.55384274,2705.2,2705.1,0.11513141]
[1646874602506,0.55384274,2705.2,2705.1,0.11357241]
[1646874602709,0.55384274,2705.2,2705.1,0.08596341]
[1646874609267,0.55384274,2705.2,2705.1,0.12267806]
[1646874614153,0.55384274,2705.2,2705.1,0.08493668]
[1646874614353,0.55384274,2705.2,2705.1,0.11410468]
[1646874614554,0.55384274,2705.2,2705.1,5.14708049]
[1646874615461,0.55384274,2705.2,2705.1,1.64708049]
[1646874615661,1.92461,2705.8,2705.3,0.07998176]
[1646874615862,1.92461,2705.8,2705.4,0.029168]
[1646874615863,0.92461,2705.8,2705.4,0.029168]
[1646874616062,0.77461,2705.8,2705.4,0.029168]
[1646874616461,0.77461,2705.8,2705.5,0.029168]
[1646874616663,0.74942217,2705.9,2705.7,0.92727589]
[1646874616863,0.55627633,2705.9,2705.8,0.08447244]
[1646874617063,0.55627633,2705.9,2705.6,0.029168]
[1646874617814,2.40552633,2705.9,2705.5,0.024501]
[1646874618007,2.40552633,2705.9,2705.6,0.0030928]
[1646874618910,2.40552633,2705.9,2705.5,0.024501]
[1646874619110,0.40552633,2705.9,2705.5,0.0493509]
[1646874619312,0.40552633,2705.9,2705.6,0.0030928]
[1646874619719,1.87900752,2705.9,2705.6,0.0030928]
[1646874619917,5.53640783,2705.9,2705.6,0.0030928]
[1646874620120,5.53640783,2705.9,2705.5,0.0493509]
[1646874620324,6.53640783,2705.9,2705.5,0.0493509]
[1646874620520,3.4,2705.8,2705.1,0.07965136]
[1646874620722,17.85080436,2705.7,2705.1,0.07965136]
[1646874621024,19.89740467,2705.7,2705.0,1.53130029]
[1646874621264,14.03740031,2705.6,2705.0,1.53130029]
[1646874621463,14.51531,2705.5,2705.0,1.53130029]
[1646874621665,0.3,2705.4,2705.0,1.53130029]
[1646874621864,0.53,2705.3,2705.0,1.53130029]
[1646874622264,1.85009,2705.2,2705.0,1.53130029]
[1646874622463,0.53,2705.1,2705.0,1.44226599]
[1646874622763,0.53,2705.1,2705.0,1.44319635]
[1646874623767,2.5,2705.0,2704.7,0.08579688]
[1646874623968,0.53,2704.9,2704.5,0.024501]
[1646874624167,0.53,2704.9,2703.7,3.51238011]
[1646874624168,2.23076,2705.0,2704.6,1.53322764]
[1646874624367,0.53,2704.8,2704.6,0.08509749]
[1646874624568,0.53,2704.8,2704.3,0.029168]
[1646874624769,0.53,2704.8,2704.5,0.08582051]
[1646874625211,0.53,2704.8,2704.4,0.00309417]
[1646874625212,2.38043,2704.8,2704.4,0.00309417]
[1646874625616,2.38043,2704.8,2704.5,0.07276565]
[1646874626011,2.38043,2704.8,2704.4,0.00309417]
[1646874626213,2.38043,2704.8,2704.4,1.55773337]
[1646874626413,2.38043,2704.8,2704.5,1.62690975]
[1646874626611,2.38043,2704.8,2704.5,0.00308083]
[1646874626813,2.38043,2704.8,2704.6,0.07159774]
[1646874627011,2.38043,2704.8,2704.5,0.00308083]
[1646874627211,2.38043,2704.8,2704.6,0.08142644]
[1646874627412,2.38043,2704.8,2704.4,0.024501]
[1646874627612,2.38043,2704.8,2704.6,0.08304138]
[1646874627811,2.38043,2704.8,2704.6,0.00308078]
[1646874628668,2.38043,2704.8,2704.5,0.024501]
[1646874628859,2.68043,2704.8,2704.6,0.00308078]
[1646874629259,3.68043,2704.8,2704.6,0.00308078]
[1646874629461,2.68043,2704.8,2704.6,0.00308078]
[1646874629662,0.02006037,2704.7,2704.5,0.0815505]
[1646874629862,0.53,2704.6,2704.4,0.024501]
[1646874630063,0.53,2704.6,2704.3,0.029168]
[1646874630265,0.53,2704.6,2704.4,1.53324768]
[1646874630463,0.53,2704.6,2704.5,0.08959032]
[1646874630668,0.53,2704.6,2704.3,0.029168]
[1646874630969,0.53,2704.6,2704.5,0.07978091]
[1646874631364,0.53,2704.6,2704.4,0.00308933]
[1646874631764,0.53,2704.6,2704.5,0.07421036]
[1646874631964,0.53,2704.6,2704.4,0.00308933]
[1646874632263,0.53,2704.6,2704.3,0.029168]
[1646874632512,0.53,2704.6,2704.5,0.08009481]
[1646874632709,0.53,2704.6,2704.4,0.00308933]
[1646874632909,0.53,2704.6,2704.5,0.0721478]
[1646874633109,0.53,2704.6,2704.4,0.00308933]
[1646874633309,0.53,2704.6,2704.5,0.08662638]
[1646874633516,0.53,2704.6,2704.3,0.029168]
[1646874633709,0.53,2704.6,2704.5,0.07041052]
[1646874634008,0.53,2704.6,2704.4,0.00308714]
[1646874634209,0.53,2704.6,2704.4,1.53637346]
[1646874634411,0.53,2704.6,2704.4,1.56554146]
[1646874634612,1.61441,2704.8,2704.5,1.65191567]
[1646874634811,0.53,2704.7,2704.4,0.03225519]
[1646874635013,0.53,2704.7,2704.5,1.53323086]
[1646874635214,0.53,2704.7,2704.6,0.07919489]
[1646874635415,2.47370666,2705.1,2704.6,1.59147963]
[1646874635619,0.92493,2705.0,2704.7,0.029168]
[1646874636022,0.92493,2705.0,2704.7,0.00308679]
[1646874636263,0.54874666,2705.1,2704.7,0.03225479]
[1646874636663,1.47363666,2705.1,2704.7,0.00308679]
[1646874636863,2.00363666,2705.1,2704.7,0.00308679]
[1646874637063,2.00363666,2705.1,2704.6,0.053669]
[1646874637261,2.00363666,2705.1,2704.8,0.00308713]
[1646874637464,2.92858666,2705.1,2704.8,0.02873913]
[1646874637761,3.92858666,2705.1,2704.8,0.02873913]
[1646874638164,3.5,2705.0,2704.5,0.024501]
[1646874638413,0.53,2705.0,2704.8,0.00308707]
[1646874638568,1.53,2705.0,2704.8,0.00308707]
[1646874638762,0.53,2705.0,2704.8,0.00308707]
[1646874639362,0.53,2705.0,2704.6,0.053669]
[1646874639562,3.39858666,2705.1,2705.0,1.47]
[1646874639762,2.92858666,2705.1,2705.0,1.47]
[1646874640011,3.92858666,2705.1,2705.0,1.47]
[1646874642012,3.00363666,2705.1,2705.0,1.47]
[1646874642211,2.00363666,2705.1,2705.0,1.47]
[1646874642813,2.00363666,2705.1,2705.0,2.68387671]
[1646874642814,0.54874666,2705.1,2705.0,2.68387671]
[1646874643116,0.54874666,2705.1,2705.0,2.71304471]
[1646874643313,0.54874666,2705.1,2705.0,4.24594466]